fUSD/lending_fUSD_20240205
["ID","MTS","AMOUNT","RATE_DAILY","PERIOD"]
[313289928,1707095437759,-1000.0,0.00022899,2]
[313289929,1707095437768,-416.5415,0.000229,2]
[313289930,1707095437777,-1569.7766,0.000229,2]
[313289931,1707095437786,-8617.1764,0.000229,2]
[313289932,1707095437796,-900.0,0.000229,8]
[313289933,1707095437805,-157.23939688,0.00022916,2]
[313289934,1707095437814,-2328.73070666,0.00022924,2]
[313289935,1707095437829,-2589.007328,0.00022924,2]
[313289936,1707095437839,-195.81524757,0.00022924,2]
[313289937,1707095437848,-207.05635437,0.00022924,2]
[313289938,1707095437857,-162.48082418,0.00022926,2]
[313289939,1707095437866,-159.87,0.00022927,2]
[313289940,1707095437876,-150.0,0.00022963,2]
[313289941,1707095437885,-157.23939688,0.00022976,2]
[313289942,1707095437895,-509.02387481,0.00022997,2]
[313289943,1707095437904,-1189.0375999,0.00022998,2]
[313289944,1707095437913,-151.69873586,0.00022998,2]
[313289945,1707095437924,-537.84155507,0.00022998,2]
[313289946,1707095437933,-290.01566211,0.00022998,2]
[313289947,1707095437942,-290.01566211,0.00022998,2]
[313289949,1707095437951,-290.01566211,0.00022998,2]
[313289951,1707095437960,-290.01566211,0.00022998,2]
[313289952,1707095437969,-290.01566211,0.00022998,2]
[313289953,1707095437978,-290.01566211,0.00022998,2]
[313289954,1707095437987,-290.01566211,0.00022998,2]
[313289955,1707095437996,-290.01566211,0.00022998,2]
[313289956,1707095438005,-290.01566211,0.00022998,2]
[313289958,1707095438015,-290.01566211,0.00022998,2]
[313289960,1707095438023,-290.01566211,0.00022998,2]
[313289962,1707095438033,-290.01566211,0.00022998,2]
[313289964,1707095438042,-290.01566211,0.00022998,2]
[313289966,1707095438052,-290.01566211,0.00022998,2]
[313289968,1707095438062,-290.01566211,0.00022998,2]
[313289970,1707095438071,-290.01566211,0.00022998,2]
[313289972,1707095438080,-290.01566211,0.00022998,2]
[313289974,1707095438092,-290.01566211,0.00022998,2]
[313289977,1707095438101,-290.01566211,0.00022998,2]
[313289980,1707095438110,-290.01566211,0.00022998,2]
[313289982,1707095438120,-290.01566211,0.00022998,2]
[313289985,1707095438130,-290.01566211,0.00022998,2]
[313289988,1707095438139,-290.01566211,0.00022998,2]
[313289991,1707095438148,-290.01566211,0.00022998,2]
[313289994,1707095438158,-290.01566211,0.00022998,2]
[313289996,1707095438167,-290.01566211,0.00022998,2]
[313289998,1707095438178,-290.01566211,0.00022998,2]
[313290000,1707095438187,-290.01566211,0.00022998,2]
[313290002,1707095438197,-290.01566211,0.00022998,2]
[313290005,1707095438207,-290.01566211,0.00022998,2]
[313290007,1707095438216,-290.01566211,0.00022998,2]
[313290009,1707095438225,-290.01566211,0.00022998,2]
[313290010,1707095438234,-290.01566211,0.00022998,2]
[313290013,1707095438244,-290.01566211,0.00022998,2]
[313290015,1707095438253,-290.01566211,0.00022998,2]
[313290017,1707095438263,-1466.07123605,0.00022999,2]
[313290019,1707095438275,-296.21024533,0.00022999,2]
[313290021,1707095438287,-5492.77787906,0.00022999,2]
[313290023,1707095438299,-896.05770181,0.00022999,2]
[313290026,1707095438314,-393.86917769,0.00022999,2]
[313290028,1707095438326,-674.975,0.00022999,2]
[313290031,1707095438342,-738.54219566,0.00022999,2]
[313290032,1707095438354,-2500.0,0.00022999,2]
[313290033,1707095438365,-2212.0210525,0.00022999,2]
[313290034,1707095438377,-1711.8021486,0.00022999,2]
[313290035,1707095438389,-1150.0,0.00022999,2]
[313290036,1707095438400,-1040.16047571,0.00022999,2]
[313290037,1707095438421,-16294.16107776,0.00022999,2]
[313290038,1707095438433,-600.1668679,0.00022999,2]
[313290040,1707095438445,-1345.52626793,0.00022999,2]
[313290042,1707095438456,-911.87514277,0.00022999,2]
[313290048,1707095438509,-4224.5457729,0.00022999,2]
[313290153,1707095440803,-155.95281202,0.00022924,2]
[313290154,1707095440812,-455.59970776,0.00022997,2]
[313290155,1707095440822,-403.3811663,0.00022998,2]
[313290156,1707095440831,-1261.84081391,0.00022999,2]
[313290157,1707095440842,-761.32869265,0.00022999,2]
[313290158,1707095440988,-950.9499993,0.00022999,2]
[313290159,1707095441013,-1709.96687199,0.00022999,2]
[313290175,1707095445563,-57932.16533651,0.00022999,2]
[313290176,1707095445572,-500.0,0.00022999,2]
[313290177,1707095445582,-500.0,0.00022999,2]
[313290178,1707095445591,-500.0,0.00022999,2]
[313290179,1707095445600,-500.0,0.00022999,2]
[313290180,1707095445609,-634.7399609,0.00022999,2]
[313290181,1707095445618,-500.0,0.00022999,2]
[313290182,1707095445627,-500.0,0.00022999,2]
[313290183,1707095445636,-500.0,0.00022999,2]
[313290184,1707095445645,-500.0,0.00022999,2]
[313290185,1707095445654,-500.0,0.00022999,2]
[313290186,1707095445663,-500.0,0.00022999,2]
[313290187,1707095445672,-500.0,0.00022999,2]
[313290188,1707095445683,-500.0,0.00022999,2]
[313290189,1707095445692,-500.0,0.00022999,2]
[313290190,1707095445701,-500.0,0.00022999,2]
[313290191,1707095445710,-500.0,0.00022999,2]
[313290192,1707095445719,-500.0,0.00022999,2]
[313290193,1707095445728,-248.48871645,0.00022999,2]
[313290194,1707095445737,-500.0,0.00022999,2]
[313290195,1707095445746,-500.0,0.00022999,2]
[313290196,1707095445755,-500.0,0.00022999,2]
[313290197,1707095445764,-500.0,0.00022999,2]
[313290198,1707095445774,-500.0,0.00022999,2]
[313290199,1707095445783,-500.0,0.00022999,2]
[313290200,1707095445791,-500.0,0.00022999,2]
[313290201,1707095445807,-500.0,0.00022999,2]
[313290202,1707095445917,-500.0,0.00022999,2]
[313290203,1707095445927,-490.7587683,0.00022999,2]
[313290204,1707095445936,-471.54399639,0.00022999,2]
[313290205,1707095445945,-264.29268869,0.00022999,2]
[313290206,1707095445953,-319.44556406,0.00022999,2]
[313290207,1707095445962,-500.0,0.00022999,2]
[313290208,1707095445971,-396.44605772,0.00022999,2]
[313290209,1707095445980,-640.56133234,0.00022999,2]
[313290210,1707095445989,-880.92406845,0.00022999,2]
[313290211,1707095445998,-2000.0,0.00022999,2]
[313290212,1707095446008,-200.0,0.00022999,2]
[313290213,1707095446017,-500.0,0.00022999,2]
[313290214,1707095446027,-500.0,0.00022999,2]
[313290215,1707095446037,-500.0,0.00022999,2]
[313290216,1707095446047,-500.0,0.00022999,2]
[313290217,1707095446059,-500.0,0.00022999,2]
[313290219,1707095446068,-500.0,0.00022999,2]
[313290221,1707095446078,-500.0,0.00022999,2]
[313290222,1707095446087,-500.0,0.00022999,2]
[313290223,1707095446095,-260.82217878,0.00022999,2]
[313290224,1707095446105,-500.0,0.00022999,2]
[313290225,1707095446114,-553.48871644,0.00022999,2]
[313290226,1707095446123,-500.0,0.00022999,2]
[313290227,1707095446132,-792.0,0.00023,2]
[313290228,1707095446141,-559047.08553979,0.00023,2]
[313290229,1707095446151,-1798190.13058705,0.00023,2]
[313290230,1707095446159,-159.87,0.00023024,2]
[313290231,1707095446169,-159.87,0.0002312,2]
[313290232,1707095446180,-1388.4965607,0.00023166,2]
[313290233,1707095446189,-159.87,0.00023216,2]
[313290234,1707095446199,-2000.0,0.00023229,2]
[313290235,1707095446208,-200.0,0.00023229,2]
[313290236,1707095446217,-159.87,0.00023312,2]
[313290237,1707095446227,-637.43,0.00023572,2]
[313290238,1707095446237,-268.0,0.00024384,2]
[313290239,1707095446246,-618.0,0.00024384,2]
[313290240,1707095446255,-375.47,0.00024587,2]
[313290241,1707095446265,-4917.73803466,0.00024637,2]
[313290242,1707095446274,-559.88,0.00024649,2]
[313290243,1707095446283,-250.0,0.00024658,2]
[313290244,1707095446293,-550.15,0.00024785,2]
[313290245,1707095446302,-1300.0,0.000249,9]
[313290246,1707095446311,-1250.0,0.00025,3]
[313290247,1707095446321,-637.43,0.00025216,2]
[313290248,1707095446330,-205.0,0.00025675,2]
[313290249,1707095446340,-150.0,0.00026079,2]
[313290250,1707095446349,-4917.73803466,0.00026351,2]
[313290251,1707095446359,-375.47,0.00026851,2]
[313290252,1707095446368,-637.43,0.0002686,2]
[313290253,1707095446378,-416.9307,0.00027,2]
[313290254,1707095446387,-1300.0,0.00027,3]
[313290255,1707095446396,-559.88,0.00027387,2]
[313290256,1707095446405,-2740.0,0.000275,2]
[313290257,1707095446415,-24285.0,0.000275,2]
[313290258,1707095446426,-550.15,0.00027539,2]
[313290259,1707095446435,-611.37098065,0.00028,2]
[313290260,1707095446444,-200.0,0.00028,2]
[313290261,1707095446454,-4917.73803466,0.00028064,2]
[313290262,1707095446463,-151.11129236,0.0002828,2]
[313290263,1707095446473,-637.43,0.00028503,2]
[313290264,1707095446482,-205.0,0.00028795,7]
[313290265,1707095446491,-1350.0,0.00029,3]
[313290266,1707095446500,-375.47,0.00029115,2]
[313290267,1707095446509,-155.0,0.000295,3]
[313290268,1707095446519,-5502.58219806,0.00029704,6]
[313290269,1707095446528,-4917.73803466,0.00029777,2]
[313290270,1707095446538,-1487.09065113,0.0002988,2]
[313290271,1707095446547,-155.0,0.0003,2]
[313290272,1707095446556,-694.54802203,0.0003,2]
[313290273,1707095446566,-16692.05510385,0.0003,3]
[313290274,1707095446575,-500.0,0.0003,2]
[313290275,1707095446584,-559.88,0.00030126,2]
[313290276,1707095446593,-637.43,0.00030147,2]
[313290277,1707095446603,-550.15,0.00030292,2]
[313290278,1707095446612,-1400.0,0.00031,3]
[313290279,1707095446621,-151.11129236,0.00031151,2]
[313290280,1707095446631,-375.47,0.00031378,2]
[313290281,1707095446640,-4917.73803466,0.0003149,3]
[313290282,1707095446649,-180.0,0.00031644,2]
[313290283,1707095446659,-27703.7634758,0.000318,3]
[313290284,1707095446668,-205.0,0.00031916,12]
[313290285,1707095446679,-155.49412686,0.00032,4]
[313290286,1707095446688,-195.81524756,0.00032347,2]
[313290287,1707095446698,-207.05635437,0.00032347,2]
[313290288,1707095446707,-559.88,0.00032865,2]
[313290289,1707095446716,-217.17,0.000329,7]
[313290290,1707095446725,-1450.0,0.00033,3]
[313290291,1707095446734,-550.15,0.00033046,2]
[313290292,1707095446743,-164.77,0.00033046,2]
[313290293,1707095446753,-4917.73803466,0.00033204,5]
[313290294,1707095446762,-375.47,0.00033642,2]
[313290295,1707095446771,-1592.24508633,0.00033704,8]
[313290296,1707095446781,-3508.02718675,0.00033916,10]
[313290297,1707095446790,-3159.69272081,0.00033916,10]
[313290298,1707095446799,-765.94522118,0.00034,4]
[313290299,1707095446809,-1944.94808865,0.00034026,10]
[313290300,1707095446818,-4016.19787773,0.00034137,10]
[313290301,1707095446828,-1533.07613513,0.00034137,10]
[313290302,1707095446837,-152.0,0.00034205,3]
[313290303,1707095446846,-151.11129236,0.00034313,2]
[313290304,1707095446855,-543.53435679,0.000349,2]
[313290305,1707095446865,-543.53435668,0.000349,2]
[313290306,1707095446874,-543.53435668,0.000349,2]
[313290307,1707095446884,-543.53435668,0.000349,2]
[313290308,1707095446894,-543.53435668,0.000349,2]
[313290309,1707095446903,-543.53435668,0.000349,2]
[313290310,1707095446913,-543.53435668,0.000349,2]
[313290311,1707095446922,-543.53435668,0.000349,2]
[313290312,1707095446934,-4917.73803466,0.00034917,7]
[313290313,1707095446943,-181550.95986447,0.00035,4]
[313290314,1707095446952,-24784.41389162,0.00035,2]
[313290315,1707095446962,-1500.0,0.00035,3]
[313290316,1707095446971,-2483.70788711,0.00035,2]
[313290317,1707095446981,-450.0,0.00035,3]
[313290318,1707095446991,-205.0,0.00035036,17]
[313290319,1707095447000,-543.53435668,0.00035532,2]
[313290320,1707095447009,-268.0,0.00035616,2]
[313290321,1707095447018,-618.0,0.00035616,2]
[313290322,1707095447027,-375.47,0.00035906,2]
[313290323,1707095447036,-906.66775357,0.0003591,5]
[313290324,1707095447046,-976.40984934,0.000361,5]
[313290325,1707095447056,-1000.0,0.00036499,10]
[313290326,1707095447066,-4917.73803466,0.0003663,9]
[313290327,1707095447078,-263.98004913,0.000369,27]
[313290328,1707095447087,-374265.0,0.00037,2]
[313290329,1707095447097,-1000.0,0.00037,2]
[313290330,1707095447106,-1550.0,0.00037,3]
[313290331,1707095447116,-1000.0,0.00037071,10]
[313290332,1707095447126,-543.53435668,0.00037111,2]
[313290333,1707095447135,-1000.0,0.00037348,10]
[313290334,1707095447144,-150.49030153,0.00037348,2]
[313290335,1707095447153,-485.9818941,0.00037506,2]
[313290336,1707095447162,-329.72378132,0.00037754,2]
[313290337,1707095447172,-152.0,0.00037814,4]
[313290338,1707095447183,-150.0,0.00037899,2]
[313290339,1707095447192,-150.0,0.00037899,2]
[313290340,1707095447201,-1600.0,0.000379,13]
[313290341,1707095447210,-626872.680047,0.000379,3]
[313290342,1707095447219,-1000.0,0.00038,10]
[313290343,1707095447229,-276.23750235,0.00038015,2]
[313290344,1707095447238,-209.16719937,0.00038021,2]
[313290345,1707095447248,-275.5534777,0.000381,2]
[313290346,1707095447257,-1000.0,0.000381,10]
[313290347,1707095447267,-392.14268101,0.00038107,2]
[313290348,1707095447276,-225.11201502,0.00038111,2]
[313290349,1707095447285,-259.43339669,0.00038112,2]
[313290350,1707095447295,-263.98004912,0.00038118,29]
[313290351,1707095447304,-440.18329621,0.00038118,2]
[313290352,1707095447313,-205.0,0.00038157,23]
[313290353,1707095447323,-1806.64,0.00038166,5]
[313290354,1707095447332,-375.47,0.0003817,2]
[313290355,1707095447341,-1000.0,0.00038256,2]
[313290356,1707095447351,-4917.73803466,0.00038343,11]
[313290357,1707095447360,-500.0,0.00038356,15]
[313290358,1707095447370,-536.3160345,0.00038356,2]
[313290359,1707095447379,-647.00947849,0.00038356,2]
[313290360,1707095447389,-523.04536286,0.00038356,2]
[313290361,1707095447398,-500.0,0.00038356,2]
[313290362,1707095447408,-538.88709604,0.00038356,2]
[313290363,1707095447417,-1000.0,0.00038356,2]
[313290364,1707095447427,-154.26883287,0.00038356,2]
[313290365,1707095447437,-353.6533913,0.00038356,2]
[313290366,1707095447447,-315.49986993,0.00038356,2]
[313290367,1707095447458,-500.0,0.00038356,2]
[313290368,1707095447468,-334.71696035,0.00038356,2]
[313290369,1707095447477,-315.49652691,0.00038356,2]
[313290370,1707095447487,-543.80936363,0.00038356,2]
[313290371,1707095447498,-292.00643514,0.00038356,2]
[313290372,1707095447507,-560.92836383,0.00038356,2]
[313290373,1707095447516,-238.00270007,0.00038356,2]
[313290374,1707095447526,-500.0,0.00038356,2]
[313290375,1707095447535,-500.0,0.00038356,2]
[313290376,1707095447544,-500.0,0.00038356,2]
[313290377,1707095447554,-515.21042305,0.00038356,2]
[313290378,1707095447563,-500.0,0.00038356,2]
[313290379,1707095447573,-500.0,0.00038356,2]
[313290380,1707095447582,-538.89082394,0.00038356,2]
[313290381,1707095447591,-537.55613145,0.00038356,2]
[313290382,1707095447600,-500.0,0.00038356,2]
[313290383,1707095447610,-554.9090015,0.00038356,2]
[313290384,1707095447619,-500.0,0.00038356,2]
[313290385,1707095447628,-500.0,0.00038356,2]
[313290386,1707095447637,-516.43576867,0.00038356,2]
[313290387,1707095447646,-550.9622816,0.00038356,2]
[313290388,1707095447655,-528.84111423,0.00038356,2]
[313290389,1707095447664,-531.66441719,0.00038356,2]
[313290390,1707095447673,-612.96068864,0.00038356,2]
[313290391,1707095447684,-549.70787443,0.00038356,2]
[313290392,1707095447693,-1031.1,0.00038356,7]
[313290393,1707095447702,-600.0,0.00038356,2]
[313290394,1707095447711,-150.0,0.00038356,2]
[313290395,1707095447720,-547.77055876,0.00038356,2]
[313290396,1707095447729,-154.47194824,0.00038356,2]
[313290397,1707095447738,-510.92017825,0.00038356,2]
[313290398,1707095447748,-539.6576397,0.00038356,2]
[313290399,1707095447757,-553.78493535,0.00038356,2]
[313290400,1707095447766,-539.84797349,0.00038356,2]
[313290401,1707095447775,-359.87743804,0.00038356,2]
[313290402,1707095447785,-550.7323149,0.00038356,2]
[313290403,1707095447794,-500.0,0.00038356,2]
[313290404,1707095447804,-522.27552235,0.00038356,2]
[313290405,1707095447813,-500.0,0.00038356,2]
[313290406,1707095447822,-500.0,0.00038356,2]
[313290407,1707095447832,-500.0,0.00038356,2]
[313290408,1707095447842,-500.0,0.00038356,2]
[313290409,1707095447959,-548.10085475,0.00038356,2]
[313290410,1707095447969,-521.89857673,0.00038356,2]
[313290411,1707095447978,-549.87244577,0.00038356,2]
[313290412,1707095447988,-500.0,0.00038356,2]
[313290413,1707095447997,-576.22804913,0.00038356,2]
[313290414,1707095448006,-562.88107973,0.00038356,2]
[313290415,1707095448015,-514.83516207,0.00038356,2]
[313290416,1707095448025,-538.90764633,0.00038356,2]
[313290417,1707095448034,-500.0,0.00038356,2]
[313290418,1707095448044,-528.34284885,0.00038356,2]
[313290419,1707095448053,-500.0,0.00038356,2]
[313290420,1707095448063,-500.0,0.00038356,2]
[313290421,1707095448075,-500.0,0.00038356,2]
[313290422,1707095448084,-500.0,0.00038356,2]
[313290423,1707095448094,-500.0,0.00038356,2]
[313290424,1707095448104,-641.32037586,0.00038356,2]
[313290425,1707095448114,-500.0,0.00038356,2]
[313290426,1707095448123,-157.24888303,0.00038356,2]
[313290427,1707095448133,-500.0,0.00038356,2]
[313290428,1707095448142,-198.99960683,0.00038356,2]
[313290429,1707095448152,-560.70548574,0.00038356,2]
[313290430,1707095448162,-315.40672098,0.00038356,2]
[313290431,1707095448171,-511.80937908,0.00038356,2]
[313290432,1707095448183,-569.76143017,0.00038356,2]
[313290433,1707095448192,-500.0,0.00038356,2]
[313290434,1707095448201,-500.0,0.00038356,2]
[313290435,1707095448211,-539.30903982,0.00038356,2]
[313290436,1707095448221,-500.0,0.00038356,2]
[313290437,1707095448230,-500.0,0.00038356,2]
[313290438,1707095448239,-500.0,0.00038356,2]
[313290439,1707095448249,-500.0,0.00038356,2]
[313290440,1707095448258,-500.0,0.00038356,2]
[313290441,1707095448267,-500.0,0.00038356,2]
[313290442,1707095448276,-500.0,0.00038356,2]
[313290443,1707095448286,-377.29015287,0.00038356,2]
[313290444,1707095448295,-606.12401363,0.00038356,2]
[313290445,1707095448304,-355.58795524,0.00038356,2]
[313290446,1707095448314,-553.67,0.00038356,2]
[313290447,1707095448323,-243.71710679,0.00038356,2]
[313290448,1707095448333,-500.0,0.00038356,2]
[313290449,1707095448343,-522.80856304,0.00038356,2]
[313290450,1707095448352,-535.04605128,0.00038356,2]
[313290451,1707095448361,-500.0,0.00038356,2]
[313290452,1707095448371,-516.82364085,0.00038356,2]
[313290453,1707095448380,-621.90072622,0.00038356,2]
[313290454,1707095448389,-438.26722826,0.00038356,2]
[313290455,1707095448399,-525.15606962,0.00038356,2]
[313290456,1707095448408,-500.0,0.00038356,2]
[313290457,1707095448417,-512.5115361,0.00038356,2]
[313290458,1707095448428,-541.95876565,0.00038356,2]
[313290459,1707095448437,-500.0,0.00038356,2]
[313290460,1707095448446,-500.0,0.00038356,2]
[313290461,1707095448456,-500.0,0.00038356,2]
[313290462,1707095448465,-500.0,0.00038356,2]
[313290463,1707095448475,-500.0,0.00038356,2]
[313290464,1707095448484,-549.89301532,0.00038356,2]
[313290465,1707095448493,-500.0,0.00038356,2]
[313290466,1707095448502,-535.70711916,0.00038356,2]
[313290467,1707095448512,-585.40199428,0.00038356,2]
[313290468,1707095448522,-500.0,0.00038356,2]
[313290469,1707095448531,-500.0,0.00038356,2]
[313290470,1707095448540,-159.33883065,0.00038356,2]
[313290471,1707095448550,-500.0,0.00038356,2]
[313290472,1707095448559,-500.0,0.00038356,2]
[313290473,1707095448568,-1044.03,0.00038356,2]
[313290474,1707095448577,-648.20174696,0.00038356,2]
[313290475,1707095448586,-500.0,0.00038356,2]
[313290476,1707095448595,-515.64144324,0.00038356,2]
[313290477,1707095448604,-500.0,0.00038356,2]
[313290478,1707095448614,-529.47147383,0.00038356,2]
[313290479,1707095448622,-500.0,0.00038356,2]
[313290480,1707095448631,-539.00407996,0.00038356,2]
[313290481,1707095448640,-500.0,0.00038356,2]
[313290482,1707095448650,-500.0,0.00038356,2]
[313290483,1707095448659,-623.40253704,0.00038356,2]
[313290484,1707095448668,-496.33596559,0.00038356,2]
[313290485,1707095448678,-500.0,0.00038356,2]
[313290486,1707095448686,-500.0,0.00038356,2]
[313290487,1707095448695,-551.04264702,0.00038356,2]
[313290488,1707095448705,-518.39235641,0.00038356,2]
[313290489,1707095448714,-500.0,0.00038356,2]
[313290490,1707095448723,-500.0,0.00038356,2]
[313290491,1707095448732,-500.0,0.00038356,2]
[313290492,1707095448741,-549.56728438,0.00038356,2]
[313290493,1707095448750,-417.44256608,0.00038356,2]
[313290494,1707095448759,-500.0,0.00038356,2]
[313290495,1707095448768,-530.55022867,0.00038356,2]
[313290496,1707095448777,-500.0,0.00038356,2]
[313290497,1707095448787,-538.62423837,0.00038356,2]
[313290498,1707095448796,-614.6541872,0.00038356,2]
[313290499,1707095448805,-500.0,0.00038356,2]
[313290500,1707095448815,-500.0,0.00038356,2]
[313290501,1707095448823,-500.0,0.00038356,2]
[313290502,1707095448833,-500.0,0.00038356,2]
[313290503,1707095448842,-521.69695829,0.00038356,2]
[313290504,1707095448851,-500.0,0.00038356,2]
[313290505,1707095448860,-178.47638662,0.00038356,2]
[313290506,1707095448869,-529.17837121,0.00038356,2]
[313290507,1707095448878,-169.9299491,0.00038356,2]
[313290508,1707095448887,-500.0,0.00038356,2]
[313290509,1707095448896,-500.0,0.00038356,2]
[313290510,1707095448905,-500.0,0.00038356,2]
[313290511,1707095448915,-203.35711244,0.00038356,2]
[313290512,1707095448924,-500.0,0.00038356,2]
[313290513,1707095448936,-500.0,0.00038356,2]
[313290514,1707095448945,-513.37809738,0.00038356,2]
[313290515,1707095448954,-500.0,0.00038356,2]
[313290516,1707095448963,-1500.0,0.00038356,2]
[313290517,1707095448972,-500.0,0.00038356,2]
[313290518,1707095448981,-500.0,0.00038356,2]
[313290519,1707095448990,-248.20890778,0.00038356,2]
[313290520,1707095448999,-500.0,0.00038356,2]
[313290521,1707095449008,-518.08661807,0.00038356,2]
[313290522,1707095449017,-500.0,0.00038356,2]
[313290523,1707095449026,-500.0,0.00038356,2]
[313290524,1707095449034,-203.09672988,0.00038356,2]
[313290525,1707095449043,-500.0,0.00038356,2]
[313290526,1707095449052,-542.42846621,0.00038356,2]
[313290527,1707095449061,-500.0,0.00038356,2]
[313290528,1707095449071,-603.48522478,0.00038356,2]
[313290529,1707095449083,-500.0,0.00038356,2]
[313290530,1707095449092,-526.86354197,0.00038356,2]
[313290531,1707095449101,-500.0,0.00038356,2]
[313290532,1707095449110,-500.0,0.00038356,2]
[313290533,1707095449119,-500.0,0.00038356,2]
[313290534,1707095449128,-500.0,0.00038356,2]
[313290535,1707095449137,-538.23063214,0.00038356,2]
[313290536,1707095449148,-506.81481372,0.00038356,2]
[313290537,1707095449157,-500.0,0.00038356,2]
[313290538,1707095449166,-500.0,0.00038356,2]
[313290539,1707095449175,-500.0,0.00038356,2]
[313290540,1707095449186,-500.0,0.00038356,2]
[313290541,1707095449195,-517.19187543,0.00038356,2]
[313290542,1707095449204,-529.95629943,0.00038356,2]
[313290543,1707095449213,-248.60339855,0.00038356,2]
[313290544,1707095449222,-500.0,0.00038356,2]
[313290545,1707095449231,-608.81,0.00038356,2]
[313290546,1707095449241,-500.0,0.00038356,2]
[313290547,1707095449250,-500.0,0.00038356,2]
[313290548,1707095449259,-500.0,0.00038356,2]
[313290549,1707095449269,-542.13142048,0.00038356,2]
[313290550,1707095449279,-500.0,0.00038356,2]
[313290551,1707095449289,-509.80047932,0.00038356,2]
[313290552,1707095449299,-500.0,0.00038356,2]
[313290553,1707095449309,-500.0,0.00038356,2]
[313290554,1707095449319,-500.0,0.00038356,2]
[313290555,1707095449328,-911.94,0.00038356,7]
[313290556,1707095449338,-500.0,0.00038356,2]
[313290557,1707095449347,-537.98403123,0.00038356,2]
[313290558,1707095449356,-518.94124414,0.00038356,2]
[313290559,1707095449366,-500.0,0.00038356,2]
[313290560,1707095449376,-500.0,0.00038356,2]
[313290561,1707095449385,-516.32106646,0.00038356,2]
[313290562,1707095449394,-500.0,0.00038356,2]
[313290563,1707095449403,-500.0,0.00038356,2]
[313290564,1707095449413,-500.0,0.00038356,2]
[313290565,1707095449422,-500.0,0.00038356,2]
[313290566,1707095449435,-500.0,0.00038356,2]
[313290567,1707095449444,-500.0,0.00038356,2]
[313290568,1707095449454,-539.30489363,0.00038356,2]
[313290569,1707095449463,-500.0,0.00038356,2]
[313290570,1707095449472,-500.0,0.00038356,2]
[313290571,1707095449482,-500.0,0.00038356,2]
[313290572,1707095449491,-500.0,0.00038356,2]
[313290573,1707095449500,-154.32889936,0.00038356,2]
[313290574,1707095449509,-500.0,0.00038356,2]
[313290575,1707095449519,-531.97508968,0.00038356,2]
[313290576,1707095449528,-513.55975495,0.00038356,2]
[313290577,1707095449538,-528.27743083,0.00038356,2]
[313290578,1707095449546,-500.0,0.00038356,2]
[313290579,1707095449555,-500.0,0.00038356,2]
[313290580,1707095449564,-197.07686702,0.00038356,2]
[313290581,1707095449573,-558.53266109,0.00038356,2]
[313290582,1707095449583,-500.0,0.00038356,2]
[313290583,1707095449592,-620.73284761,0.00038356,2]
[313290584,1707095449602,-553.97369853,0.00038356,2]
[313290585,1707095449611,-268.28671888,0.00038356,2]
[313290586,1707095449620,-591.15546746,0.00038356,2]
[313290587,1707095449630,-535.55646088,0.00038356,2]
[313290588,1707095449639,-500.0,0.00038356,2]
[313290589,1707095449648,-500.0,0.00038356,2]
[313290590,1707095449657,-556.70292319,0.00038356,2]
[313290591,1707095449666,-576.68701779,0.00038356,2]
[313290592,1707095449675,-500.0,0.00038356,2]
[313290593,1707095449687,-500.0,0.00038356,2]
[313290594,1707095449697,-500.0,0.00038356,2]
[313290595,1707095449706,-500.0,0.00038356,2]
[313290596,1707095449715,-500.0,0.00038356,2]
[313290597,1707095449724,-1072.12,0.00038356,2]
[313290598,1707095449814,-500.0,0.00038356,2]
[313290599,1707095449833,-500.0,0.00038356,2]